fUST/lending_fUST_20250826
["ID","MTS","AMOUNT","RATE_DAILY","PERIOD"]
[381338955,1756141847682,-151.3133871,0.00040973,120]
[381338957,1756141847691,-8947.79140583,0.00040994,2]
[381338959,1756141847701,-199.0,0.00040995,30]
[381338960,1756141847710,-1000.0,0.00040995,2]
[381338962,1756141847720,-160.0,0.00041034,2]
[381338964,1756141847729,-160.0,0.00041034,2]
[381338966,1756141847738,-160.0,0.00041034,2]
[381338968,1756141847748,-500.0,0.00041073,2]
[381338970,1756141847757,-502.72381565,0.00041073,5]
[381338972,1756141847768,-500.66389292,0.00041073,5]
[381338974,1756141847777,-500.95677798,0.00041073,5]
[381338976,1756141847787,-500.0,0.00041073,5]
[381338978,1756141847796,-500.0,0.00041073,5]
[381338980,1756141847805,-500.0,0.00041073,5]
[381338982,1756141847815,-500.0,0.00041073,5]
[381338984,1756141847826,-500.0,0.00041073,5]
[381338986,1756141847836,-500.0,0.00041073,5]
[381338988,1756141847845,-553.78702163,0.00041073,5]
[381338990,1756141847854,-500.0,0.00041073,2]
[381338992,1756141847864,-537.06229316,0.00041073,5]
[381338994,1756141847874,-588.93873768,0.00041073,5]
[381338996,1756141847883,-151.0,0.00041094,30]
[381338997,1756141847893,-151.0,0.00041094,30]
[381338998,1756141847903,-151.0,0.00041094,30]
[381338999,1756141847913,-214.743042,0.00041094,30]
[381339000,1756141847922,-417.15472785,0.00041094,30]
[381339001,1756141847932,-221.187154,0.00041094,30]
[381339002,1756141847941,-221.187154,0.00041094,30]
[381339003,1756141847950,-221.187154,0.00041094,30]
[381339004,1756141847959,-221.187154,0.00041094,30]
[381339005,1756141847968,-221.187154,0.00041094,30]
[381339006,1756141847977,-221.187154,0.00041094,30]
[381339007,1756141847987,-221.187154,0.00041094,30]
[381339008,1756141847996,-221.187154,0.00041094,30]
[381339009,1756141848006,-151.0,0.00041094,30]
[381339010,1756141848015,-151.0,0.00041094,30]
[381339011,1756141848025,-151.0,0.00041094,30]
[381339013,1756141848035,-151.0,0.00041094,30]
[381339015,1756141848044,-151.0,0.00041094,30]
[381339017,1756141848053,-151.0,0.00041094,30]
[381339019,1756141848063,-151.0,0.00041094,30]
[381339021,1756141848074,-151.0,0.00041094,30]
[381339023,1756141848083,-404.39677678,0.00041094,31]
[381339025,1756141848093,-500.0,0.00041094,31]
[381339027,1756141848103,-618.53507296,0.00041094,31]
[381339028,1756141848112,-3176.44293538,0.00041094,31]
[381339030,1756141848122,-3176.44293538,0.00041094,31]
[381339032,1756141848131,-3176.44293538,0.00041094,31]
[381339034,1756141848140,-3176.44293538,0.00041094,31]
[381339036,1756141848153,-3176.44293538,0.00041094,31]
[381339038,1756141848163,-3176.44293538,0.00041094,31]
[381339040,1756141848173,-3176.44293538,0.00041094,31]
[381339042,1756141848182,-3176.44293538,0.00041094,31]
[381339044,1756141848193,-3176.44293538,0.00041094,31]
[381339046,1756141848203,-3176.44293538,0.00041094,31]
[381339048,1756141848214,-3176.44293538,0.00041094,31]
[381339050,1756141848224,-3176.44293538,0.00041094,31]
[381339052,1756141848235,-3176.44293538,0.00041094,31]
[381339054,1756141848245,-3176.44293538,0.00041094,31]
[381339056,1756141848255,-3176.44293538,0.00041094,31]
[381339058,1756141848265,-3176.44293538,0.00041094,31]
[381339060,1756141848275,-3176.44293538,0.00041094,31]
[381339062,1756141848284,-3176.44293538,0.00041094,31]
[381339064,1756141848294,-3176.44293538,0.00041094,31]
[381339066,1756141848304,-3176.44293538,0.00041094,31]
[381339068,1756141848314,-3176.44293538,0.00041094,31]
[381339070,1756141848324,-3176.44293538,0.00041094,31]
[381339072,1756141848334,-3176.44293538,0.00041094,31]
[381339074,1756141848344,-3176.44293538,0.00041094,31]
[381339076,1756141848355,-3176.44293538,0.00041094,31]
[381339078,1756141848365,-3176.44293538,0.00041094,31]
[381339080,1756141848374,-3176.44293538,0.00041094,31]
[381339082,1756141848384,-3176.44293538,0.00041094,31]
[381339084,1756141848394,-3176.44293538,0.00041094,31]
[381339086,1756141848403,-3176.44293538,0.00041094,31]
[381339088,1756141848413,-3176.44293538,0.00041094,31]
[381339090,1756141848423,-3176.44293538,0.00041094,31]
[381339092,1756141848433,-3176.44293538,0.00041094,31]
[381339094,1756141848443,-3176.44293538,0.00041094,31]
[381339096,1756141848453,-3176.44293538,0.00041094,31]
[381339098,1756141848463,-3176.44293538,0.00041094,31]
[381339100,1756141848473,-3176.44293538,0.00041094,31]
[381339102,1756141848483,-3176.44293538,0.00041094,31]
[381339104,1756141848494,-3176.44293538,0.00041094,31]
[381339106,1756141848503,-3176.44293538,0.00041094,31]
[381339108,1756141848512,-3176.44293538,0.00041094,31]
[381339110,1756141848522,-3176.44293538,0.00041094,31]
[381339112,1756141848532,-3176.44293538,0.00041094,31]
[381339114,1756141848541,-3176.44293538,0.00041094,31]
[381339116,1756141848551,-3176.44293538,0.00041094,31]
[381339117,1756141848561,-3176.44293538,0.00041094,31]
[381339119,1756141848571,-3176.44293538,0.00041094,31]
[381339121,1756141848580,-3176.44293538,0.00041094,31]
[381339123,1756141848590,-151.0,0.00041094,30]
[381339125,1756141848600,-151.0,0.00041094,30]
[381339127,1756141848610,-4764.22212349,0.00041094,31]
[381339129,1756141848619,-4764.22212349,0.00041094,31]
[381339131,1756141848629,-4764.22212349,0.00041094,31]
[381339133,1756141848638,-4764.22212349,0.00041094,31]
[381339135,1756141848650,-4764.22212349,0.00041094,31]
[381339137,1756141848659,-4764.22212349,0.00041094,31]
[381339139,1756141848668,-4764.22212349,0.00041094,31]
[381339141,1756141848678,-4764.22212349,0.00041094,31]
[381339143,1756141848687,-4764.22212349,0.00041094,31]
[381339145,1756141848697,-4764.22212349,0.00041094,31]
[381339147,1756141848706,-4764.22212349,0.00041094,31]
[381339149,1756141848715,-4764.22212349,0.00041094,31]
[381339151,1756141848725,-4764.22212349,0.00041094,31]
[381339153,1756141848735,-4764.22212349,0.00041094,31]
[381339155,1756141848744,-4764.22212349,0.00041094,31]
[381339157,1756141848754,-4764.22212349,0.00041094,31]
[381339158,1756141848763,-4764.22212349,0.00041094,31]
[381339159,1756141848773,-4764.22212349,0.00041094,31]
[381339160,1756141848783,-4764.22212349,0.00041094,31]
[381339161,1756141848984,-833.7388716,0.00041094,31]
[381339162,1756141848993,-833.7388716,0.00041094,31]
[381339163,1756141849004,-833.7388716,0.00041094,31]
[381339164,1756141849014,-833.7388716,0.00041094,31]
[381339165,1756141849023,-155.472744,0.00041094,30]
[381339166,1756141849033,-155.472744,0.00041094,30]
[381339167,1756141849043,-151.0,0.00041094,30]
[381339168,1756141849053,-151.0,0.00041094,30]
[381339169,1756141849063,-155.472744,0.00041094,30]
[381339170,1756141849074,-151.0,0.00041094,30]
[381339171,1756141849084,-155.472744,0.00041094,30]
[381339172,1756141849093,-151.0,0.00041094,30]
[381339173,1756141849103,-155.472744,0.00041094,30]
[381339174,1756141849113,-155.472744,0.00041094,30]
[381339175,1756141849122,-155.472744,0.00041094,30]
[381339176,1756141849131,-155.472744,0.00041094,30]
[381339177,1756141849141,-151.0,0.00041094,30]
[381339178,1756141849156,-151.0,0.00041094,30]
[381339179,1756141849166,-151.0,0.00041094,30]
[381339180,1756141849176,-151.0,0.00041094,30]
[381339181,1756141849185,-151.0,0.00041094,30]
[381339182,1756141849196,-151.0,0.00041094,30]
[381339183,1756141849206,-17733.4687227,0.00041095,2]
[381339184,1756141849216,-480.0,0.00041095,30]
[381339185,1756141849227,-480.0,0.00041095,30]
[381339186,1756141849236,-480.0,0.00041095,30]
[381339187,1756141849246,-480.0,0.00041095,30]
[381339188,1756141849255,-480.0,0.00041095,30]
[381339189,1756141849265,-480.0,0.00041095,30]
[381339190,1756141849276,-480.0,0.00041095,30]
[381339191,1756141849285,-480.0,0.00041095,30]
[381339192,1756141849295,-480.0,0.00041095,30]
[381339193,1756141849304,-572.84,0.00041095,30]
[381339194,1756141849314,-160.0,0.00041095,30]
[381339195,1756141849324,-507.94,0.00041095,30]
[381339196,1756141849333,-480.0,0.00041095,30]
[381339197,1756141849343,-480.0,0.00041095,30]
[381339198,1756141849352,-480.0,0.00041095,30]
[381339199,1756141849362,-459.01775484,0.00041095,30]
[381339200,1756141849371,-480.0,0.00041095,30]
[381339201,1756141849380,-480.0,0.00041095,30]
[381339202,1756141849389,-480.0,0.00041095,30]
[381339203,1756141849399,-480.0,0.00041095,30]
[381339204,1756141849407,-659.28,0.00041095,30]
[381339205,1756141849417,-480.0,0.00041095,30]
[381339206,1756141849426,-695.01,0.00041095,30]
[381339207,1756141849435,-480.0,0.00041095,30]
[381339208,1756141849444,-480.0,0.00041095,30]
[381339209,1756141849454,-517.61,0.00041095,30]
[381339210,1756141849463,-480.0,0.00041095,30]
[381339211,1756141849473,-570.18,0.00041095,30]
[381339212,1756141849482,-2828.36,0.00041095,30]
[381339213,1756141849492,-1471.21,0.00041095,30]
[381339214,1756141849501,-615.62111508,0.00041095,30]
[381339215,1756141849510,-480.0,0.00041095,30]
[381339216,1756141849519,-480.0,0.00041095,30]
[381339217,1756141849529,-480.0,0.00041095,30]
[381339218,1756141849539,-480.0,0.00041095,30]
[381339219,1756141849550,-480.0,0.00041095,30]
[381339220,1756141849559,-792.71,0.00041095,30]
[381339221,1756141849568,-480.0,0.00041095,30]
[381339222,1756141849577,-1172.66,0.00041095,30]
[381339223,1756141849587,-515.54801891,0.00041095,30]
[381339224,1756141849597,-631.76,0.00041095,30]
[381339225,1756141849607,-480.86708431,0.00041095,30]
[381339226,1756141849616,-480.0,0.00041095,30]
[381339227,1756141849625,-480.0,0.00041095,30]
[381339228,1756141849635,-480.0,0.00041095,30]
[381339229,1756141849644,-1001.75,0.00041095,30]
[381339230,1756141849653,-480.0,0.00041095,30]
[381339231,1756141849662,-480.0,0.00041095,30]
[381339232,1756141849672,-480.0,0.00041095,30]
[381339233,1756141849681,-480.0,0.00041095,30]
[381339234,1756141849691,-610.74613551,0.00041095,30]
[381339235,1756141849700,-480.0,0.00041095,2]
[381339236,1756141849709,-480.0,0.00041095,30]
[381339237,1756141849719,-517.15,0.00041095,30]
[381339238,1756141849730,-480.0,0.00041095,30]
[381339239,1756141849740,-480.0,0.00041095,30]
[381339240,1756141849750,-480.0,0.00041095,30]
[381339241,1756141849759,-1000.0,0.00041095,30]
[381339242,1756141849768,-1499.23,0.00041095,30]
[381339243,1756141849778,-480.0,0.00041095,30]
[381339244,1756141849787,-480.0,0.00041095,30]
[381339245,1756141849797,-318.8506167,0.00041095,30]
[381339246,1756141849806,-480.0,0.00041095,30]
[381339247,1756141849815,-600.72,0.00041095,30]
[381339248,1756141849826,-1202.57,0.00041095,30]
[381339249,1756141849835,-480.0,0.00041095,30]
[381339250,1756141849845,-480.0,0.00041095,30]
[381339251,1756141849855,-1238.96,0.00041095,30]
[381339252,1756141849864,-480.0,0.00041095,30]
[381339253,1756141849873,-480.0,0.00041095,30]
[381339254,1756141849882,-480.0,0.00041095,30]
[381339255,1756141849891,-480.0,0.00041095,30]
[381339256,1756141849901,-1816.12,0.00041095,30]
[381339257,1756141849910,-480.0,0.00041095,30]
[381339258,1756141849919,-480.0,0.00041095,30]
[381339259,1756141849928,-480.0,0.00041095,30]
[381339260,1756141849937,-480.0,0.00041095,30]
[381339261,1756141849947,-480.0,0.00041095,30]
[381339262,1756141849956,-480.0,0.00041095,30]
[381339263,1756141849965,-719.39,0.00041095,30]
[381339264,1756141849974,-480.0,0.00041095,30]
[381339265,1756141849983,-480.0,0.00041095,30]
[381339266,1756141849992,-480.0,0.00041095,30]
[381339267,1756141850001,-703.99,0.00041095,7]
[381339268,1756141850011,-537.64,0.00041095,30]
[381339269,1756141850020,-987.7,0.00041095,30]
[381339270,1756141850029,-982.87,0.00041095,30]
[381339271,1756141850038,-480.0,0.00041095,30]
[381339272,1756141850048,-480.0,0.00041095,30]
[381339273,1756141850057,-235.31036443,0.00041095,30]
[381339274,1756141850066,-480.0,0.00041095,30]
[381339275,1756141850077,-1059.03,0.00041095,30]
[381339276,1756141850087,-480.0,0.00041095,30]
[381339277,1756141850096,-480.0,0.00041095,30]
[381339278,1756141850105,-778.1,0.00041095,30]
[381339279,1756141850116,-480.0,0.00041095,30]
[381339280,1756141850126,-584.37,0.00041095,30]
[381339281,1756141850136,-480.0,0.00041095,30]
[381339282,1756141850145,-480.0,0.00041095,30]
[381339283,1756141850162,-480.0,0.00041095,30]
[381339284,1756141850171,-480.0,0.00041095,30]
[381339285,1756141850181,-673.22,0.00041095,30]
[381339286,1756141850190,-480.0,0.00041095,30]
[381339287,1756141850201,-480.0,0.00041095,30]
[381339288,1756141850211,-480.0,0.00041095,30]
[381339289,1756141850221,-480.0,0.00041095,30]
[381339290,1756141850231,-480.0,0.00041095,30]
[381339291,1756141850242,-480.0,0.00041095,30]
[381339292,1756141850251,-480.0,0.00041095,30]
[381339293,1756141850261,-573.45,0.00041095,30]
[381339294,1756141850270,-480.0,0.00041095,30]
[381339295,1756141850279,-970.77,0.00041095,30]
[381339296,1756141850288,-480.0,0.00041095,30]
[381339297,1756141850297,-480.0,0.00041095,30]
[381339298,1756141850307,-480.0,0.00041095,30]
[381339299,1756141850316,-480.0,0.00041095,20]
[381339300,1756141850327,-480.0,0.00041095,30]
[381339301,1756141850336,-756.04,0.00041095,30]
[381339302,1756141850345,-480.0,0.00041095,30]
[381339303,1756141850355,-1259.26,0.00041095,30]
[381339304,1756141850364,-480.0,0.00041095,30]
[381339305,1756141850374,-480.0,0.00041095,30]
[381339306,1756141850384,-480.0,0.00041095,30]
[381339307,1756141850394,-480.0,0.00041095,30]
[381339308,1756141850404,-480.0,0.00041095,30]
[381339309,1756141850415,-480.0,0.00041095,30]
[381339310,1756141850426,-480.0,0.00041095,30]
[381339311,1756141850436,-738.7,0.00041095,30]
[381339312,1756141850445,-915.45,0.00041095,30]
[381339313,1756141850454,-480.0,0.00041095,30]
[381339314,1756141850464,-457.3803214,0.00041095,30]
[381339315,1756141850473,-480.0,0.00041095,30]
[381339316,1756141850483,-480.0,0.00041095,30]
[381339317,1756141850495,-480.0,0.00041095,30]
[381339318,1756141850512,-480.0,0.00041095,30]
[381339319,1756141850528,-480.0,0.00041095,30]
[381339320,1756141850539,-480.0,0.00041095,30]
[381339321,1756141850554,-480.0,0.00041095,30]
[381339322,1756141850568,-972.89,0.00041095,30]
[381339323,1756141850584,-480.0,0.00041095,30]
[381339324,1756141850598,-480.0,0.00041095,30]
[381339325,1756141850614,-1112.92,0.00041095,30]
[381339326,1756141850629,-480.0,0.00041095,30]
[381339327,1756141850643,-727.75,0.00041095,30]
[381339328,1756141850657,-480.0,0.00041095,30]
[381339329,1756141850673,-288.85,0.00041095,30]
[381339330,1756141850686,-480.0,0.00041095,30]
[381339331,1756141850698,-480.0,0.00041095,30]
[381339332,1756141850713,-480.0,0.00041095,7]
[381339333,1756141850729,-480.0,0.00041095,30]
[381339334,1756141850743,-480.0,0.00041095,30]
[381339335,1756141850758,-576.56,0.00041095,30]
[381339336,1756141850774,-576.56,0.00041095,30]
[381339337,1756141850789,-576.56,0.00041095,30]
[381339338,1756141850800,-895.02,0.00041095,30]
[381339339,1756141850812,-576.56,0.00041095,30]
[381339340,1756141850831,-576.56,0.00041095,30]
[381339341,1756141850846,-576.56,0.00041095,30]
[381339342,1756141850857,-576.56,0.00041095,30]
[381339343,1756141850870,-576.56,0.00041095,30]
[381339344,1756141850884,-953.58,0.00041095,30]
[381339345,1756141850895,-576.56,0.00041095,30]
[381339346,1756141850907,-576.56,0.00041095,30]
[381339347,1756141850920,-576.56,0.00041095,30]
[381339348,1756141850932,-576.56,0.00041095,30]
[381339349,1756141850945,-576.56,0.00041095,30]
[381339350,1756141850958,-576.56,0.00041095,30]
[381339351,1756141850970,-576.56,0.00041095,30]
[381339352,1756141850983,-576.56,0.00041095,30]
[381339353,1756141850995,-480.0,0.00041095,30]
[381339354,1756141851012,-576.56,0.00041095,30]
[381339355,1756141851024,-480.0,0.00041095,30]
[381339356,1756141851036,-576.56,0.00041095,30]
[381339357,1756141851048,-576.56,0.00041095,30]
[381339358,1756141851060,-576.56,0.00041095,30]
[381339359,1756141851074,-576.56,0.00041095,30]
[381339361,1756141851086,-602.08,0.00041095,30]
[381339363,1756141851098,-199.85767804,0.00041095,30]
[381339365,1756141851110,-576.56,0.00041095,30]
[381339368,1756141851123,-576.56,0.00041095,30]
[381339370,1756141851135,-576.77600159,0.00041095,30]
[381339372,1756141851149,-480.0,0.00041095,30]
[381339374,1756141851161,-480.0,0.00041095,30]
[381339376,1756141851174,-480.0,0.00041095,30]
[381339379,1756141851187,-480.0,0.00041095,30]
[381339381,1756141851199,-480.0,0.00041095,30]
[381339383,1756141851212,-480.0,0.00041095,30]
[381339385,1756141851225,-480.0,0.00041095,30]
[381339386,1756141851238,-526.93617059,0.00041095,30]
[381339387,1756141851249,-480.0,0.00041095,30]
[381339388,1756141851262,-553.81,0.00041095,30]
[381339390,1756141851274,-789.7,0.00041095,30]
[381339392,1756141851287,-670.8,0.00041095,30]
[381339394,1756141851299,-410.52311325,0.00041095,30]
[381339396,1756141851311,-480.0,0.00041095,30]
[381339399,1756141851324,-786.78,0.00041095,30]
[381339401,1756141851337,-480.0,0.00041095,30]
[381339403,1756141851350,-543.14,0.00041095,30]
[381339406,1756141851362,-480.0,0.00041095,30]
[381339407,1756141851375,-480.0,0.00041095,5]
[381339408,1756141851387,-480.0,0.00041095,30]
[381339409,1756141851399,-586.0,0.00041095,30]
[381339411,1756141851412,-480.0,0.00041095,30]
[381339413,1756141851424,-699.42,0.00041095,30]
[381339415,1756141851437,-480.0,0.00041095,30]
[381339418,1756141851450,-480.0,0.00041095,30]
[381339420,1756141851463,-480.0,0.00041095,30]
[381339422,1756141851476,-480.0,0.00041095,30]
[381339423,1756141851489,-480.0,0.00041095,30]
[381339424,1756141851503,-426.38757823,0.00041095,30]
[381339425,1756141851516,-552.93,0.00041095,30]
[381339426,1756141851529,-480.0,0.00041095,30]
[381339427,1756141851542,-498.32,0.00041095,30]
[381339428,1756141851555,-1065.87,0.00041095,30]
[381339429,1756141851568,-480.0,0.00041095,30]
[381339430,1756141851581,-486.67,0.00041095,30]
[381339431,1756141851594,-150.29886333,0.00041095,30]
[381339432,1756141851607,-590.82,0.00041095,30]
[381339433,1756141851619,-2810.29,0.00041095,30]
[381339434,1756141851632,-2536.57,0.00041095,30]
[381339435,1756141851644,-480.0,0.00041095,30]
[381339436,1756141851657,-480.0,0.00041095,30]
[381339437,1756141851669,-506.01,0.00041095,30]
[381339438,1756141851681,-480.0,0.00041095,30]
[381339439,1756141851694,-480.0,0.00041095,30]
[381339440,1756141851706,-480.0,0.00041095,30]
[381339441,1756141851719,-480.0,0.00041095,30]
[381339442,1756141851731,-480.0,0.00041095,30]
[381339443,1756141851744,-480.0,0.00041095,30]
[381339444,1756141851758,-791.21,0.00041095,30]
[381339445,1756141851770,-480.0,0.00041095,30]
[381339446,1756141851783,-1643.12,0.00041095,30]
[381339447,1756141851795,-986.08,0.00041095,30]
[381339448,1756141851807,-716.57,0.00041095,30]
[381339449,1756141851819,-480.0,0.00041095,30]
[381339450,1756141851833,-493.46,0.00041095,30]
[381339451,1756141851846,-1412.77,0.00041095,30]
[381339452,1756141851858,-1002.44,0.00041095,30]
[381339453,1756141851872,-480.0,0.00041095,30]
[381339454,1756141851886,-480.0,0.00041095,30]
[381339455,1756141851899,-480.0,0.00041095,30]
[381339456,1756141851911,-480.0,0.00041095,30]
[381339457,1756141851924,-480.0,0.00041095,30]
[381339458,1756141851937,-480.0,0.00041095,30]
[381339459,1756141851950,-480.0,0.00041095,30]
[381339460,1756141851963,-480.0,0.00041095,30]
[381339461,1756141851976,-486.9,0.00041095,30]
[381339462,1756141851989,-480.0,0.00041095,30]
[381339463,1756141852001,-480.0,0.00041095,30]
[381339464,1756141852015,-480.0,0.00041095,30]
[381339465,1756141852028,-1986.85,0.00041095,30]
[381339466,1756141852040,-480.0,0.00041095,30]
[381339467,1756141852052,-480.0,0.00041095,30]
[381339468,1756141852065,-1169.44,0.00041095,30]
[381339469,1756141852077,-759.54,0.00041095,30]
[381339470,1756141852090,-523.53,0.00041095,30]
[381339471,1756141852103,-480.0,0.00041095,30]
[381339472,1756141852116,-480.0,0.00041095,30]
[381339473,1756141852128,-2371.04,0.00041095,30]
[381339474,1756141852140,-480.0,0.00041095,30]
[381339475,1756141852157,-480.0,0.00041095,30]
[381339476,1756141852169,-480.0,0.00041095,30]
[381339477,1756141852183,-233.52315202,0.00041095,30]
[381339478,1756141852196,-480.0,0.00041095,30]
[381339479,1756141852209,-845.88,0.00041095,30]
[381339480,1756141852222,-1073.69,0.00041095,30]
[381339481,1756141852235,-480.0,0.00041095,30]
[381339482,1756141852248,-500.0,0.00041095,30]
[381339483,1756141852260,-480.0,0.00041095,30]
[381339484,1756141852272,-491.9,0.00041095,30]
[381339485,1756141852283,-151.0,0.00041095,30]
[381339486,1756141852292,-643.33,0.00041095,30]
[381339487,1756141852302,-651.46,0.00041095,30]
[381339488,1756141852312,-1121.42,0.00041095,30]
[381339489,1756141852321,-480.0,0.00041095,30]
[381339490,1756141852331,-573.85,0.00041095,30]
[381339491,1756141852340,-480.0,0.00041095,30]
[381339492,1756141852349,-912.48,0.00041095,30]
[381339493,1756141852359,-859.3,0.00041095,30]
[381339494,1756141852368,-2229.14,0.00041095,30]
[381339495,1756141852378,-480.0,0.00041095,30]
[381339496,1756141852388,-1539.47,0.00041095,30]
[381339497,1756141852397,-480.0,0.00041095,30]
[381339498,1756141852407,-556.93,0.00041095,30]
[381339499,1756141852418,-594.19,0.00041095,30]
[381339514,1756141852428,-480.0,0.00041095,30]
[381339519,1756141852770,-480.0,0.00041095,30]
[381339522,1756141852787,-480.0,0.00041095,30]
[381339523,1756141852795,-480.0,0.00041095,30]
[381339525,1756141852804,-480.0,0.00041095,30]
[381339527,1756141852813,-480.0,0.00041095,20]
[381339529,1756141852823,-1066.85,0.00041095,30]
[381339531,1756141852832,-740.62,0.00041095,30]
[381339533,1756141852841,-1106.56,0.00041095,30]
[381339535,1756141852850,-480.0,0.00041095,30]
[381339537,1756141852860,-862.07,0.00041095,30]
[381339539,1756141852869,-480.0,0.00041095,30]
[381339541,1756141852879,-1288.64,0.00041095,30]
[381339543,1756141852888,-566.76,0.00041095,30]
[381339545,1756141852897,-480.0,0.00041095,30]
[381339547,1756141852906,-561.19,0.00041095,30]
[381339549,1756141852915,-579.51,0.00041095,30]
[381339551,1756141852925,-1135.78,0.00041095,30]
[381339553,1756141852934,-480.0,0.00041095,30]
[381339555,1756141852943,-163.76567491,0.00041095,30]
[381340947,1756141924924,-500.0,0.00031299,2]
[381340948,1756141924951,-368.24185191,0.00031299,2]
[381340949,1756141924980,-190.87437696,0.00031299,2]
[381340950,1756141962157,394.67020465,0.000199,2]
[381340951,1756141962507,394.67020448,0.00021627,2]
[381340952,1756141962545,394.67020448,0.00023353,2]
[381340953,1756141962579,394.67020448,0.0002508,2]
[381340954,1756141962620,394.67020448,0.00026806,6]
[381340955,1756141962728,394.67020448,0.00028533,10]
[381340956,1756141962832,394.67020448,0.00030259,13]
[381340957,1756141974965,500.0,0.00031299,2]
[381340958,1756141974992,500.0,0.00031299,2]
[381340959,1756141975019,500.0,0.00031299,2]
[381340960,1756141975048,500.0,0.00031299,2]
[381340961,1756141975073,500.0,0.00031299,2]
[381340962,1756141975099,500.0,0.00031299,2]
[381340963,1756141975128,500.0,0.00031299,2]
[381340964,1756141975162,500.0,0.00031299,2]
[381340965,1756141975282,500.0,0.00031299,2]
[381340966,1756141975327,500.0,0.00031299,2]
[381340967,1756141975375,119.08611073,0.00031299,2]
[381340968,1756142141758,315.09871546,0.000199,2]
[381340969,1756142141882,315.09871539,0.00021627,2]
[381340970,1756142141996,315.09871539,0.00023353,2]
[381340971,1756142142441,315.09871539,0.0002508,2]
[381340972,1756142152589,451.89770887,0.00025205,30]
[381340975,1756142322468,509.45089891,0.000199,2]
[381340976,1756142322547,509.45089879,0.00021627,2]
[381340977,1756142322694,509.45089879,0.00023353,2]
[381340978,1756142322827,509.45089879,0.0002508,2]
[381340979,1756142485058,163.817579,0.00013699,2]
[381340980,1756142485327,163.817579,0.00026027,2]
[381340981,1756142500481,448.55909098,0.000199,2]
[381340982,1756142500593,448.55909084,0.00021627,2]
[381340983,1756142500693,448.55909084,0.00023353,2]
[381340984,1756142500840,448.55909084,0.0002508,2]
[381340986,1756142556105,-448.55909084,0.00026806,6]
[381340987,1756142586193,-2457.92826819,0.00027772,2]
[381340988,1756142586226,-155.55774648,0.00027772,2]
[381340989,1756142596175,-351.2937646,0.00027872,2]
[381340990,1756142596204,-1200.0,0.00027899,2]
[381340991,1756142596232,-300.0,0.00027999,2]
[381340992,1756142597308,417.15472785,0.00028,10]
[381340993,1756142602116,984.863071,0.00027532,2]
[381340994,1756142602603,155.55774647,0.00027899,2]
[381340995,1756142621339,1000.0,0.00027532,30]
[381340996,1756142648526,529.29072822,0.000281,7]
[381340997,1756142653164,282.246485,0.00024715,2]
[381340998,1756142653561,282.246485,0.0002497,2]
[381340999,1756142683231,380.83093553,0.000199,2]
[381341000,1756142683328,380.83093545,0.00021627,2]
[381341001,1756142683430,380.83093545,0.00023353,2]
[381341002,1756142683554,380.83093545,0.0002508,2]
[381341003,1756142683680,380.83093545,0.00026806,6]
[381341004,1756142700318,741.90854993,0.00027752,2]
[381341005,1756142700342,529.05759527,0.00027752,2]
[381341009,1756142712889,200.6959772,0.00027532,2]
[381341015,1756142790971,4043.28439819,0.000278,2]